[Event "WSTCC-65 2020"]
[Site "Prague"]
[Date "2020.03.09"]
[Round "4.34"]
[White "Singer, Hans"]
[Black "Luethke, Hans-Eckart"]
[Result "1-0"]
[ECO "D31"]
[WhiteElo "2168"]
[BlackElo "2091"]
[Annotator "NA"]
[PlyCount "53"]
[EventDate "2020.03.06"]
[EventType "team-tourn"]
[EventCountry "CZE"]
[SourceTitle "playchess.com"]
[Source "ChessBase"]
[SourceQuality "1"]
[TimeControl "40/5400+30:1800+30"]

1. c4 {[%emt 0:00:00]} e6 {[%emt 0:00:25]} 2. Nc3 {[%emt 0:00:00]} d5 {[%emt 0:00:08]} 3. d4 {[%emt 0:00:00]} Be7 {[%emt 0:00:40]} 4. Nf3 {[%emt 0:00:28]} c6 {[%emt 0:00:36]} 5. e4 {[%emt 0:01:42]} dxe4 {[%emt 0:00:43]} 6. Nxe4 {[%emt 0:00:10]} Nf6 {[%emt 0:00:31]} 7. Bd3 {[%emt 0:07:10]} Nxe4 {[%emt 0:00:50]} 8. Bxe4 {[%emt 0:00:03]} Nd7 {[%emt 0:00:49]} 9. O-O {[%emt 0:02:13]} Nf6 {[%emt 0:00:07]} 10. Bc2 {[%emt 0:00:48]} O-O {[%emt 0:01:06]} 11. Qd3 {[%emt 0:02:32]} c5 {[%emt 0:02:14]} 12. Bg5 {[%emt 0:01:43]} g6 {[%emt 0:00:01]} 13. dxc5 {[%emt 0:05:11]} Qc7 $18 {[%emt 0:01:03]} (13... Qxd3 $16 {was necessary.} 14. Bxd3 Kg7) 14. Qc3 {[%emt 0:01:16]} Ne8 {[%emt 0:05:08]} 15. Bxe7 {[%emt 0:00:21]} Qxe7 {[%emt 0:00:03]} 16. b4 {[%emt 0:00:36]} f6 {[%emt 0:02:51]} 17. Rad1 {[%emt 0:04:53]} e5 {[%emt 0:00:41]} 18. Be4 {[%emt 0:00:32]} Kg7 {[%emt 0:02:33]} 19. a3 {[%emt 0:10:51]} Nc7 {[%emt 0:02:14]} 20. Rd6 {[%emt 0:06:15]} Rb8 {[%emt 0:01:08]} 21. Rfd1 {[%emt 0:00:48]} Be6 {[%emt 0:01:08]} 22. h3 {[%emt 0:06:43]} Qf7 {[%emt 0:04:15]} 23. a4 {[%emt 0:08:42]} Rfe8 {[%emt 0:02:01]} 24. b5 {[%emt 0:03:45]} Re7 {[%emt 0:00:27]} 25. c6 {[%emt 0:01:01]} bxc6 {[%emt 0:04:05]} 26. Rxc6 {[%emt 0:00:16]} Ne8 {[%emt 0:01:13]} 27. Nxe5 {[%emt 0:01:07]} 1-0

[Event "WSTCC-65 2020"]
[Site "Prague"]
[Date "2020.03.09"]
[Round "4.35"]
[White "Schulz, Michael"]
[Black "Ager, Josef"]
[Result "0-1"]
[ECO "A45"]
[WhiteElo "2122"]
[BlackElo "2139"]
[Annotator "ChessBase"]
[PlyCount "80"]
[EventDate "2020.03.06"]
[EventType "team-tourn"]
[EventCountry "CZE"]
[SourceTitle "playchess.com"]
[Source "ChessBase"]
[SourceQuality "1"]
[TimeControl "40/5400+30:1800+30"]

1. d4 {[%emt 0:00:00]} Nf6 {[%emt 0:00:00]} 2. Bg5 {[%emt 0:00:00]} Ne4 {[%emt 0:00:00]} 3. Bf4 {[%emt 0:00:00]} e6 {[%emt 0:00:00]} 4. e3 {[%emt 0:00:03]} b6 {[%emt 0:00:26]} 5. f3 {[%emt 0:02:49]} Nf6 {[%emt 0:00:58]} 6. e4 {[%emt 0:00:31]} d5 {[%emt 0:02:06]} 7. e5 {[%emt 0:01:33]} Ng8 {[%emt 0:00:36]} 8. c3 {[%emt 0:00:54]} Ne7 {[%emt 0:00:17]} 9. Bg5 {[%emt 0:01:55]} Qd7 {[%emt 0:01:03]} 10. Bd3 {[%emt 0:05:41]} Ba6 {[%emt 0:00:39]} 11. Ne2 {[%emt 0:00:39]} Bxd3 {[%emt 0:00:45]} 12. Qxd3 {[%emt 0:00:05]} c5 {[%emt 0:00:10]} 13. O-O {[%emt 0:00:59]} Nbc6 {[%emt 0:00:10]} 14. Bxe7 {[%emt 0:05:16]} Bxe7 {[%emt 0:00:29]} 15. f4 {[%emt 0:00:07]} g6 {[%emt 0:00:39]} 16. Nd2 {[%emt 0:02:30]} c4 {[%emt 0:04:08]} 17. Qf3 {[%emt 0:01:39]} b5 {[%emt 0:01:03]} 18. b4 {[%emt 0:06:13]} a5 {[%emt 0:00:54]} 19. a4 {[%emt 0:01:34]} axb4 {[%emt 0:02:40]} 20. axb5 {[%emt 0:01:51]} Rxa1 {[%emt 0:00:07]} 21. Rxa1 {[%emt 0:00:19]} Nd8 {[%emt 0:00:12]} 22. cxb4 {[%emt 0:09:24]} Qxb5 {[%emt 0:01:06]} 23. Nc3 {[%emt 0:04:38]} Qxb4 {[%emt 0:01:20]} 24. Rb1 {[%emt 0:01:45]} Qa5 {[%emt 0:00:56]} 25. Rb5 {[%emt 0:01:56]} Qa7 {[%emt 0:00:25]} 26. Qe3 {[%emt 0:00:12]} Nc6 {[%emt 0:02:01]} 27. Nf3 {[%emt 0:00:28]} Bb4 {[%emt 0:02:57]} 28. Kf2 {[%emt 0:06:48]} Qa6 {[%emt 0:04:43]} 29. Rxb4 {[%emt 0:06:24]} Nxb4 {[%emt 0:00:09]} 30. h3 {[%emt 0:09:15]} h6 {[%emt 0:01:18]} 31. g4 {[%emt 0:01:05]} Qa5 {[%emt 0:05:15]} 32. Kg3 {[%emt 0:01:06]} Nd3 {[%emt 0:00:33]} 33. Ne2 {[%emt 0:02:41]} Qb4 {[%emt 0:04:15]} 34. Kh2 {[%emt 0:07:40]} Kd7 {[%emt 0:01:57]} 35. f5 {[%emt 0:02:14]} g5 {[%emt 0:03:30]} 36. Nfg1 {[%emt 0:05:35]} Qe1 {[%emt 0:01:24]} 37. Kh1 {[%emt 0:01:46]} Ra8 {[%emt 0:01:40]} 38. Qf3 {[%emt 0:01:47]} Qf2 {[%emt 0:00:11]} 39. Qxf2 {[%emt 0:00:29]} Nxf2+ {[%emt 0:00:11]} 40. Kg2 {[%emt 0:00:00]} Ne4 {[%emt 0:00:00]} 0-1

[Event "WSTCC-65 2020"]
[Site "Prague"]
[Date "2020.03.09"]
[Round "4.36"]
[White "Danner, Lambert"]
[Black "Sager, Bernd"]
[Result "1-0"]
[ECO "D34"]
[WhiteElo "2022"]
[BlackElo "1920"]
[Annotator "ChessBase"]
[PlyCount "63"]
[EventDate "2020.03.06"]
[EventType "team-tourn"]
[EventCountry "CZE"]
[SourceTitle "playchess.com"]
[Source "ChessBase"]
[SourceQuality "1"]
[TimeControl "40/5400+30:1800+30"]

1. g3 {[%emt 0:00:00]} d5 {[%emt 0:01:10]} 2. c4 {[%emt 0:00:00]} e6 {[%emt 0:00:47]} 3. Bg2 {[%emt 0:00:00]} Nf6 {[%emt 0:01:06]} 4. Nf3 {[%emt 0:00:18]} Be7 {[%emt 0:03:32]} 5. O-O {[%emt 0:01:04]} O-O {[%emt 0:02:29]} 6. d4 {[%emt 0:00:55]} c5 {[%emt 0:07:42]} 7. cxd5 {[%emt 0:00:57]} exd5 {[%emt 0:02:09]} 8. Nc3 {[%emt 0:00:21]} Nc6 {[%emt 0:12:05]} 9. dxc5 {[%emt 0:07:58]} Bxc5 {[%emt 0:00:20]} 10. a3 {[%emt 0:00:21]} Be6 {[%emt 0:00:59]} 11. b4 {[%emt 0:00:42]} Be7 {[%emt 0:05:57]} 12. Bb2 {[%emt 0:01:13]} a6 {[%emt 0:13:19]} 13. Nd4 {[%emt 0:02:57]} Nxd4 {[%emt 0:04:31]} 14. Qxd4 {[%emt 0:00:06]} Rc8 {[%emt 0:01:23]} 15. Rfd1 {[%emt 0:03:30]} Rc4 {[%emt 0:04:44]} 16. Qxc4 {[%emt 0:03:34]} dxc4 {[%emt 0:00:09]} 17. Rxd8 {[%emt 0:00:05]} Rxd8 {[%emt 0:00:07]} 18. Bxb7 {[%emt 0:00:06]} Rd2 {[%emt 0:00:34]} 19. Rb1 {[%emt 0:00:52]} Bf5 {[%emt 0:08:07]} 20. e4 {[%emt 0:00:59]} Bh3 {[%emt 0:05:37]} 21. Nd1 {[%emt 0:02:23]} a5 {[%emt 0:05:14]} 22. Bc3 {[%emt 0:03:18]} Rc2 {[%emt 0:06:59]} 23. bxa5 {[%emt 0:02:20]} Bg4 {[%emt 0:04:58]} 24. Bxf6 {[%emt 0:00:39]} gxf6 {[%emt 0:00:02]} 25. Ne3 {[%emt 0:00:10]} Ra2 {[%emt 0:01:51]} 26. Nxg4 {[%emt 0:00:21]} c3 {[%emt 0:00:29]} 27. Rc1 {[%emt 0:01:34]} c2 {[%emt 0:02:08]} 28. Ne3 {[%emt 0:01:24]} Rb2 {[%emt 0:00:12]} 29. Rxc2 {[%emt 0:02:36]} Rxb7 {[%emt 0:00:18]} 30. Rc8+ {[%emt 0:00:48]} Kg7 {[%emt 0:03:28]} 31. Nf5+ {[%emt 0:00:08]} Kg6 {[%emt 0:00:05]} 32. Rg8+ {[%emt 0:00:23]} 1-0

[Event "WSTCC-65 2020"]
[Site "Prague"]
[Date "2020.03.09"]
[Round "4.37"]
[White "Watzka, Horst"]
[Black "Klundt, Klaus"]
[Result "1/2-1/2"]
[ECO "B48"]
[WhiteElo "2166"]
[BlackElo "2299"]
[Annotator "ChessBase"]
[PlyCount "79"]
[EventDate "2020.03.06"]
[EventType "team-tourn"]
[EventCountry "CZE"]
[SourceTitle "playchess.com"]
[Source "ChessBase"]
[SourceQuality "1"]
[TimeControl "40/5400+30:1800+30"]

1. e4 {[%emt 0:00:00]} c5 {[%emt 0:00:00]} 2. Nf3 {[%emt 0:00:09]} e6 {[%emt 0:00:00]} 3. Nc3 {[%emt 0:01:42]} Nc6 {[%emt 0:01:02]} 4. d4 {[%emt 0:03:01]} cxd4 {[%emt 0:00:14]} 5. Nxd4 {[%emt 0:00:06]} Qc7 {[%emt 0:00:13]} 6. Be3 {[%emt 0:01:03]} a6 {[%emt 0:00:14]} 7. Qf3 {[%emt 0:04:14]} b5 {[%emt 0:03:37]} 8. Nxc6 {[%emt 0:11:26]} Qxc6 {[%emt 0:01:26]} 9. Bd3 {[%emt 0:02:21]} Bb7 {[%emt 0:01:12]} 10. a3 {[%emt 0:07:07]} Nf6 {[%emt 0:02:17]} 11. Bd4 {[%emt 0:01:20]} Bc5 {[%emt 0:02:42]} 12. Bxc5 {[%emt 0:04:32]} Qxc5 {[%emt 0:02:25]} 13. Qe2 {[%emt 0:00:12]} e5 {[%emt 0:10:58]} 14. O-O-O {[%emt 0:12:14]} O-O {[%emt 0:04:31]} 15. g4 {[%emt 0:07:20]} b4 {[%emt 0:03:05]} 16. axb4 {[%emt 0:01:35]} Qxb4 {[%emt 0:00:03]} 17. g5 {[%emt 0:00:13]} Ne8 {[%emt 0:00:22]} 18. Rhe1 {[%emt 0:14:10]} Rb8 {[%emt 0:16:11]} 19. Bc4 {[%emt 0:07:01]} Nd6 {[%emt 0:01:11]} 20. Bb3 {[%emt 0:00:35]} Rfc8 {[%emt 0:00:47]} 21. Qd3 {[%emt 0:02:20]} Nb5 {[%emt 0:12:45]} 22. Nxb5 {[%emt 0:07:39]} axb5 23. Qe3 {[%emt 0:01:52]} Ra8 {[%emt 0:02:02]} 24. Kb1 {[%emt 0:01:06]} Qa5 {[%emt 0:00:36]} 25. c3 {[%emt 0:01:17]} Bc6 {[%emt 0:01:14]} 26. Kc2 {[%emt 0:04:07]} b4 {[%emt 0:00:44]} 27. Ra1 {[%emt 0:00:14]} Qc7 {[%emt 0:00:33]} 28. Rxa8 Rxa8 {[%emt 0:00:22]} 29. f3 {[%emt 0:01:02]} Ba4 {[%emt 0:01:09]} 30. Bxa4 Rxa4 {[%emt 0:00:02]} 31. Kb3 {[%emt 0:01:58]} Qa5 {[%emt 0:00:26]} 32. Rc1 {[%emt 0:02:45]} g6 {[%emt 0:00:53]} 33. Qd2 {[%emt 0:00:21]} bxc3 {[%emt 0:00:43]} 34. Rxc3 {[%emt 0:00:16]} Rb4+ {[%emt 0:01:40]} 35. Kc2 {[%emt 0:00:09]} Qa4+ {[%emt 0:00:09]} 36. Kb1 {[%emt 0:00:35]} Rd4 {[%emt 0:00:14]} 37. Rd3 {[%emt 0:00:15]} Qc4 {[%emt 0:02:25]} 38. Rxd4 {[%emt 0:00:11]} exd4 {[%emt 0:00:02]} 39. h4 {[%emt 0:00:00]} Kf8 {[%emt 0:00:00]} 40. Qa5 {[%emt 0:00:00]} 1/2-1/2

[Event "WSTCC-65 2020"]
[Site "Prague"]
[Date "2020.03.09"]
[Round "4.38"]
[White "Kannenberg, Karl-Heinz"]
[Black "Kratschmer, Heinz"]
[Result "1-0"]
[ECO "A45"]
[WhiteElo "2118"]
[BlackElo "2037"]
[Annotator "ChessBase"]
[PlyCount "89"]
[EventDate "2020.03.06"]
[EventType "team-tourn"]
[EventCountry "CZE"]
[SourceTitle "playchess.com"]
[Source "ChessBase"]
[SourceQuality "1"]
[TimeControl "40/5400+30:1800+30"]

1. d4 {[%emt 0:00:00]} Nf6 {[%emt 0:00:00]} 2. Bf4 {[%emt 0:00:00]} g6 {[%emt 0:00:00]} 3. e3 {[%emt 0:00:10]} Bg7 {[%emt 0:00:00]} 4. Nf3 {[%emt 0:00:14]} d6 {[%emt 0:00:11]} 5. h3 {[%emt 0:01:54]} O-O {[%emt 0:00:14]} 6. Be2 {[%emt 0:00:05]} c5 {[%emt 0:00:37]} 7. c3 {[%emt 0:00:46]} cxd4 {[%emt 0:04:16]} 8. exd4 {[%emt 0:01:24]} Nc6 {[%emt 0:00:07]} 9. O-O {[%emt 0:12:47]} Bf5 {[%emt 0:06:53]} 10. Nbd2 {[%emt 0:12:15]} Qb6 {[%emt 0:10:08]} 11. Nc4 {[%emt 0:02:16]} Qc7 {[%emt 0:01:11]} 12. d5 {[%emt 0:03:01]} Na5 {[%emt 0:01:09]} 13. Ne3 {[%emt 0:00:37]} b6 {[%emt 0:07:02]} 14. Nxf5 {[%emt 0:08:53]} gxf5 {[%emt 0:00:03]} 15. Nh4 {[%emt 0:00:40]} Qd7 {[%emt 0:04:44]} 16. Qd3 {[%emt 0:04:57]} Nb7 {[%emt 0:04:01]} 17. Bf3 {[%emt 0:10:02]} Ne4 {[%emt 0:05:03]} 18. Bxe4 {[%emt 0:04:33]} Nc5 {[%emt 0:00:24]} 19. Bxf5 {[%emt 0:00:41]} Nxd3 {[%emt 0:00:07]} 20. Bxd7 {[%emt 0:00:11]} Nxf4 {[%emt 0:00:09]} 21. Rad1 {[%emt 0:03:46]} Rad8 {[%emt 0:03:02]} 22. Bc6 {[%emt 0:01:02]} e5 {[%emt 0:00:48]} 23. Nf5 {[%emt 0:03:26]} h5 {[%emt 0:01:36]} 24. Kh2 {[%emt 0:04:59]} Kh7 {[%emt 0:00:28]} 25. g3 {[%emt 0:03:50]} Ng6 {[%emt 0:00:40]} 26. Rfe1 {[%emt 0:01:11]} Bf6 {[%emt 0:04:35]} 27. Re4 {[%emt 0:00:30]} Ne7 {[%emt 0:00:43]} 28. Nxe7 {[%emt 0:00:17]} Bxe7 {[%emt 0:00:01]} 29. Ra4 {[%emt 0:00:28]} a5 {[%emt 0:00:32]} 30. b4 {[%emt 0:00:54]} axb4 {[%emt 0:00:15]} 31. Rxb4 {[%emt 0:02:20]} Rb8 {[%emt 0:00:05]} 32. Rdb1 {[%emt 0:00:08]} Bd8 {[%emt 0:00:03]} 33. Ra4 {[%emt 0:00:25]} Kg6 {[%emt 0:02:53]} 34. Ra7 {[%emt 0:00:57]} f5 {[%emt 0:01:43]} 35. Rd7 {[%emt 0:01:09]} Rf6 {[%emt 0:00:15]} 36. Rb4 {[%emt 0:00:17]} f4 {[%emt 0:00:55]} 37. Ra4 {[%emt 0:01:55]} b5 {[%emt 0:06:28]} 38. Rb4 {[%emt 0:03:58]} fxg3+ 39. Kxg3 {[%emt 0:01:42]} Ba5 {[%emt 0:02:00]} 40. Rxb5 {[%emt 0:00:00]} h4+ {[%emt 0:00:00]} 41. Kxh4 {[%emt 0:07:39]} Rh8+ {[%emt 0:02:54]} 42. Kg3 {[%emt 0:04:15]} Bxc3 {[%emt 0:00:15]} 43. Rb3 {[%emt 0:01:03]} Be1 {[%emt 0:01:18]} 44. Rf3 {[%emt 0:00:20]} Rhf8 {[%emt 0:00:02]} 45. Rxd6 {[%emt 0:00:16]} 1-0

[Event "WSTCC-65 2020"]
[Site "Prague"]
[Date "2020.03.09"]
[Round "4.39"]
[White "Pitzl, Konstantinos"]
[Black "Krauseneck, Peter"]
[Result "1/2-1/2"]
[ECO "A04"]
[WhiteElo "2023"]
[BlackElo "2126"]
[Annotator "ChessBase"]
[PlyCount "25"]
[EventDate "2020.03.06"]
[EventType "team-tourn"]
[EventCountry "CZE"]
[SourceTitle "playchess.com"]
[Source "ChessBase"]
[SourceQuality "1"]
[TimeControl "40/5400+30:1800+30"]

1. Nf3 {[%emt 0:00:00]} f5 {[%emt 0:02:00]} 2. d3 {[%emt 0:00:00]} Nf6 {[%emt 0:00:52]} 3. e4 {[%emt 0:00:00]} d6 {[%emt 0:00:46]} 4. Nc3 {[%emt 0:00:12]} e5 {[%emt 0:00:27]} 5. exf5 {[%emt 0:00:23]} Bxf5 {[%emt 0:00:18]} 6. d4 {[%emt 0:01:54]} e4 {[%emt 0:01:50]} 7. Nh4 {[%emt 0:00:11]} Qd7 {[%emt 0:19:03]} 8. d5 {[%emt 0:08:33]} Be7 {[%emt 0:05:04]} 9. Nxf5 {[%emt 0:10:39]} Qxf5 {[%emt 0:01:25]} 10. Be2 {[%emt 0:00:15]} O-O {[%emt 0:00:57]} 11. Be3 {[%emt 0:00:05]} c6 {[%emt 0:09:13]} 12. g4 {[%emt 0:00:28]} Qe5 {[%emt 0:01:26]} 13. Bd4 {[%emt 0:04:42]} 1/2-1/2

[Event "WSTCC-65 2020"]
[Site "Prague"]
[Date "2020.03.09"]
[Round "4.43"]
[White "Moen, Ole Christian"]
[Black "Rovira Mas, Jorge"]
[Result "1/2-1/2"]
[ECO "B06"]
[WhiteElo "2192"]
[BlackElo "2196"]
[Annotator "ChessBase"]
[PlyCount "71"]
[EventDate "2020.03.06"]
[EventType "team-tourn"]
[EventCountry "CZE"]
[SourceTitle "playchess.com"]
[Source "ChessBase"]
[SourceQuality "1"]
[TimeControl "40/5400+30:1800+30"]

1. e4 {[%emt 0:00:00]} g6 {[%emt 0:00:00]} 2. d4 {[%emt 0:00:00]} Bg7 {[%emt 0:00:00]} 3. f4 {[%emt 0:00:18]} d6 {[%emt 0:00:01]} 4. Nf3 {[%emt 0:00:24]} a6 {[%emt 0:00:27]} 5. c3 {[%emt 0:01:11]} Nd7 {[%emt 0:00:40]} 6. Bc4 {[%emt 0:02:12]} e6 {[%emt 0:00:11]} 7. O-O {[%emt 0:02:12]} b5 {[%emt 0:02:59]} 8. Bb3 {[%emt 0:00:19]} Nb6 {[%emt 0:01:26]} 9. f5 {[%emt 0:04:12]} gxf5 {[%emt 0:37:47]} 10. exf5 {[%emt 0:01:19]} d5 {[%emt 0:00:33]} 11. Bg5 {[%emt 0:02:39]} Bf6 {[%emt 0:00:57]} 12. fxe6 {[%emt 0:06:08]} Bxe6 {[%emt 0:00:21]} 13. Qd2 {[%emt 0:01:07]} Qe7 {[%emt 0:04:09]} 14. Bxf6 {[%emt 0:01:03]} Nxf6 {[%emt 0:00:32]} 15. Ne5 {[%emt 0:00:38]} Ne4 {[%emt 0:08:50]} 16. Qf4 {[%emt 0:03:37]} f6 {[%emt 0:03:54]} 17. Nd3 {[%emt 0:02:35]} O-O-O {[%emt 0:00:27]} 18. Nd2 {[%emt 0:00:34]} f5 {[%emt 0:07:10]} 19. a4 {[%emt 0:13:55]} bxa4 {[%emt 0:02:26]} 20. Bxa4 {[%emt 0:00:13]} Qd6 {[%emt 0:08:10]} 21. Nxe4 {[%emt 0:06:02]} fxe4 {[%emt 0:05:59]} 22. Nc5 {[%emt 0:00:17]} Qxf4 {[%emt 0:04:49]} 23. Rxf4 {[%emt 0:00:07]} Bd7 {[%emt 0:00:25]} 24. Bxd7+ {[%emt 0:05:39]} Nxd7 {[%emt 0:00:02]} 25. Rxa6 {[%emt 0:00:08]} Nxc5 {[%emt 0:00:11]} 26. dxc5 {[%emt 0:00:08]} Kb7 {[%emt 0:00:02]} 27. Re6 {[%emt 0:00:42]} Rhf8 {[%emt 0:01:09]} 28. Rf2 {[%emt 0:01:23]} Ra8 {[%emt 0:00:55]} 29. g4 {[%emt 0:02:07]} Rxf2 {[%emt 0:00:22]} 30. Kxf2 {[%emt 0:00:04]} Ra2 {[%emt 0:00:06]} 31. c4 {[%emt 0:06:58]} Rxb2+ {[%emt 0:01:49]} 32. Ke3 {[%emt 0:05:46]} Rb3+ {[%emt 0:03:32]} 33. Kd2 {[%emt 0:01:09]} dxc4 {[%emt 0:00:45]} 34. h4 {[%emt 0:02:06]} Rd3+ {[%emt 0:02:32]} 35. Kc2 {[%emt 0:00:21]} e3 {[%emt 0:01:14]} 36. g5 {[%emt 0:02:29]} 1/2-1/2

[Event "WSTCC-65 2020"]
[Site "Prague"]
[Date "2020.03.09"]
[Round "4.44"]
[White "Saenz Forero, Fernando"]
[Black "Semakoff, Aleks"]
[Result "1/2-1/2"]
[ECO "A06"]
[WhiteElo "1524"]
[BlackElo "2012"]
[Annotator "ChessBase"]
[PlyCount "90"]
[EventDate "2020.03.06"]
[EventType "team-tourn"]
[EventCountry "CZE"]
[SourceTitle "playchess.com"]
[Source "ChessBase"]
[SourceQuality "1"]
[TimeControl "40/5400+30:1800+30"]

1. Nf3 {[%emt 0:00:00]} d5 {[%emt 0:00:00]} 2. c3 {[%emt 0:00:24]} Nf6 {[%emt 0:02:09]} 3. d3 {[%emt 0:01:26]} Nc6 {[%emt 0:01:24]} 4. Qc2 {[%emt 0:00:33]} e5 {[%emt 0:01:30]} 5. e4 {[%emt 0:00:27]} Be7 {[%emt 0:01:59]} 6. Be2 {[%emt 0:03:45]} O-O {[%emt 0:01:15]} 7. Nbd2 {[%emt 0:01:04]} a5 {[%emt 0:02:36]} 8. O-O {[%emt 0:01:23]} h6 {[%emt 0:03:15]} 9. Re1 {[%emt 0:00:51]} Re8 {[%emt 0:05:18]} 10. Nf1 {[%emt 0:00:19]} Be6 {[%emt 0:04:08]} 11. Ng3 {[%emt 0:00:40]} Qd7 {[%emt 0:06:23]} 12. Bf1 {[%emt 0:06:41]} Rad8 {[%emt 0:05:11]} 13. Bd2 {[%emt 0:08:22]} Bg4 {[%emt 0:02:49]} 14. Rad1 {[%emt 0:02:51]} Bc5 {[%emt 0:13:12]} 15. Bc1 {[%emt 0:03:09]} Qc8 {[%emt 0:03:52]} 16. Be2 {[%emt 0:04:49]} d4 {[%emt 0:03:58]} 17. c4 {[%emt 0:03:10]} Nb4 {[%emt 0:02:21]} 18. Qb1 {[%emt 0:00:13]} a4 {[%emt 0:03:17]} 19. Bd2 {[%emt 0:03:18]} Na6 {[%emt 0:03:59]} 20. Nh4 {[%emt 0:01:46]} Bb4 {[%emt 0:02:03]} 21. Nhf5 {[%emt 0:03:04]} Bxd2 {[%emt 0:01:11]} 22. Rxd2 {[%emt 0:00:15]} Bxf5 {[%emt 0:01:55]} 23. Nxf5 {[%emt 0:00:26]} Nc5 {[%emt 0:00:51]} 24. Rf1 {[%emt 0:01:28]} Ne6 {[%emt 0:05:09]} 25. g3 {[%emt 0:03:29]} Kh7 {[%emt 0:03:10]} 26. Qd1 {[%emt 0:04:13]} g6 {[%emt 0:01:35]} 27. Nh4 {[%emt 0:02:20]} a3 {[%emt 0:05:27]} 28. b3 {[%emt 0:01:10]} Qd7 {[%emt 0:02:42]} 29. Ng2 {[%emt 0:00:26]} Qe7 {[%emt 0:01:01]} 30. f4 {[%emt 0:00:50]} exf4 {[%emt 0:00:39]} 31. Nxf4 {[%emt 0:01:08]} Nxf4 {[%emt 0:00:18]} 32. Rxf4 {[%emt 0:01:24]} Nd7 {[%emt 0:00:58]} 33. Qf1 {[%emt 0:03:12]} Ne5 {[%emt 0:00:24]} 34. Bd1 {[%emt 0:01:17]} Rf8 {[%emt 0:01:17]} 35. Rdf2 {[%emt 0:00:26]} Kg7 {[%emt 0:02:15]} 36. Be2 {[%emt 0:00:16]} Qg5 {[%emt 0:02:01]} 37. Kg2 {[%emt 0:01:36]} h5 {[%emt 0:00:41]} 38. h3 {[%emt 0:01:23]} Qe7 {[%emt 0:00:55]} 39. Rf6 {[%emt 0:05:54]} Rd6 {[%emt 0:01:26]} 40. R6f4 {[%emt 0:00:00]} Rdd8 {[%emt 0:00:00]} 41. Qc1 {[%emt 0:04:53]} Qb4 {[%emt 0:05:47]} 42. Rf6 {[%emt 0:05:53]} Nd7 {[%emt 0:09:10]} 43. R6f4 {[%emt 0:05:37]} Qe7 {[%emt 0:02:27]} 44. Qd2 {[%emt 0:00:42]} b6 {[%emt 0:00:56]} 45. R4f3 {[%emt 0:04:07]} Ne5 {[%emt 0:04:43]} 1/2-1/2

[Event "WSTCC-65 2020"]
[Site "Prague"]
[Date "2020.03.09"]
[Round "4.45"]
[White "Boehnisch, Manfred"]
[Black "Lagerborg, Krister"]
[Result "1/2-1/2"]
[ECO "B50"]
[WhiteElo "2246"]
[BlackElo "2144"]
[Annotator "ChessBase"]
[PlyCount "81"]
[EventDate "2020.03.06"]
[EventType "team-tourn"]
[EventCountry "CZE"]
[SourceTitle "playchess.com"]
[Source "ChessBase"]
[SourceQuality "1"]
[TimeControl "40/5400+30:1800+30"]

1. e4 {[%emt 0:00:00]} c5 {[%emt 0:00:00]} 2. Nf3 {[%emt 0:00:00]} d6 {[%emt 0:00:00]} 3. c3 {[%emt 0:00:11]} Nf6 {[%emt 0:00:19]} 4. Be2 {[%emt 0:00:16]} g6 {[%emt 0:03:03]} 5. O-O {[%emt 0:01:27]} Bg7 {[%emt 0:00:19]} 6. Re1 {[%emt 0:02:04]} O-O {[%emt 0:00:50]} 7. d3 {[%emt 0:01:31]} Nc6 {[%emt 0:01:13]} 8. Nbd2 {[%emt 0:01:00]} e5 9. Nc4 {[%emt 0:05:52]} b5 {[%emt 0:05:38]} 10. Ne3 {[%emt 0:00:30]} a6 {[%emt 0:02:23]} 11. a4 {[%emt 0:03:40]} Rb8 {[%emt 0:00:45]} 12. axb5 {[%emt 0:00:30]} axb5 {[%emt 0:00:02]} 13. Bf1 {[%emt 0:03:40]} h6 {[%emt 0:00:44]} 14. Bd2 {[%emt 0:19:59]} Be6 {[%emt 0:02:28]} 15. Qc1 {[%emt 0:04:23]} Kh7 {[%emt 0:00:30]} 16. b4 {[%emt 0:02:20]} Qb6 {[%emt 0:04:28]} 17. Qa3 {[%emt 0:03:49]} cxb4 {[%emt 0:04:24]} 18. cxb4 {[%emt 0:02:03]} Rfc8 {[%emt 0:03:07]} 19. Rec1 {[%emt 0:04:27]} d5 {[%emt 0:04:46]} 20. exd5 {[%emt 0:00:34]} Nxd5 {[%emt 0:00:21]} 21. Nxd5 {[%emt 0:05:06]} Bxd5 {[%emt 0:00:13]} 22. Be3 {[%emt 0:00:58]} Qb7 {[%emt 0:01:27]} 23. Nd2 {[%emt 0:00:23]} e4 {[%emt 0:10:38]} 24. dxe4 {[%emt 0:00:19]} Ra8 {[%emt 0:00:45]} 25. exd5 {[%emt 0:01:31]} Rxa3 {[%emt 0:02:31]} 26. Rxa3 {[%emt 0:00:28]} Nxb4 {[%emt 0:01:56]} 27. Rb1 {[%emt 0:07:34]} Bf8 {[%emt 0:07:51]} 28. Ra5 {[%emt 0:05:00]} Qd7 {[%emt 0:05:04]} 29. Rxb5 {[%emt 0:01:25]} Nxd5 {[%emt 0:00:30]} 30. Ne4 {[%emt 0:02:38]} Bg7 {[%emt 0:01:35]} 31. Rd1 {[%emt 0:00:29]} Qe7 {[%emt 0:02:53]} 32. Ng5+ hxg5 {[%emt 0:00:10]} 33. Rbxd5 {[%emt 0:06:37]} g4 {[%emt 0:00:52]} 34. g3 {[%emt 0:02:32]} Rc7 {[%emt 0:04:54]} 35. Bd3 {[%emt 0:05:46]} f5 {[%emt 0:03:14]} 36. Bb5 {[%emt 0:01:27]} Qe4 {[%emt 0:03:15]} 37. Rd6 {[%emt 0:03:34]} Be5 {[%emt 0:10:15]} 38. Rd7+ {[%emt 0:03:12]} Rxd7 {[%emt 0:01:19]} 39. Rxd7+ {[%emt 0:00:02]} Kg8 {[%emt 0:00:53]} 40. Bf1 {[%emt 0:00:00]} Qc6 {[%emt 0:00:00]} 41. Ra7 {[%emt 0:02:39]} 1/2-1/2